[Event "FISU WUMSCC Men 2024"]
[Site "Entebbe"]
[Date "2024.06.28"]
[Round "6.1"]
[White "Szpar, Milosz"]
[Black "Turcan, Richard"]
[Result "1-0"]
[ECO "B56"]
[WhiteElo "2497"]
[BlackElo "2374"]
[Annotator "TA"]
[PlyCount "95"]
[EventDate "2024.06.24"]
[EventType "swiss"]
[EventCountry "UGA"]
[SourceTitle "playchess.com"]
[Source "ChessBase"]
[SourceQuality "1"]
[TimeControl "5400+30"]

{[%evp 20,94,36,14,24,27,50,-41,0,0,37,43,97,101,81,59,116,110,123,102,124,106,129,133,244,236,295,260,247,237,238,225,219,212,199,202,239,244,231,164,168,164,315,288,377,449,479,460,600,550,577,362,341,334,327,252,252,268,247,260,852,725,3897,2152,5749,4818,29949,6125,29979,29980,29986,29987,29987,29987,29993,29994,29999]} 1. e4 {[%emt 0:05:07]} c5 {[%emt 0:00:03]} 2. Nf3 {[%emt 0:00:17]} d6 {[%emt 0:00:10]} 3. d4 {[%emt 0:00:31]} cxd4 {[%emt 0:00:06]} 4. Nxd4 {[%emt 0:00:05]} Nf6 {[%emt 0:00:05]} 5. Nc3 {[%emt 0:00:12]} Nc6 {[%emt 0:01:20]} 6. f3 {[%emt 0:00:53]} e5 {[%emt 0:00:20]} 7. Nb3 {[%emt 0:00:08]} Be7 {[%emt 0:00:05]} 8. Be3 {[%emt 0:00:07]} O-O {[%emt 0:00:06]} 9. Qd2 {[%emt 0:00:06]} a5 {[%emt 0:00:37]} 10. Bb5 {[%emt 0:01:37]} Be6 {[%emt 0:00:43]} 11. Rd1 {[%emt 0:06:36]} Na7 {[%emt 0:06:26]} 12. Bd3 {[%emt 0:06:05]} Nc6 {[%emt 0:01:40]} 13. O-O {[%emt 0:06:21]} (13. a3 $1 $14) 13... a4 {[%emt 0:01:05] Black is slightly better.} 14. Nc1 {[%emt 0:00:09]} Qa5 {[%emt 0:09:50]} (14... Nb4 $5) 15. a3 {[%emt 0:04:08]} Rfd8 {[%emt 0:07:27]} (15... Rfb8 $14) 16. Qf2 $1 $16 {[%emt 0:04:20]} Nd7 {[%emt 0:04:51] Dodges Bb6} 17. Nd5 {[%emt 0:13:33]} Bxd5 {[%emt 0:10:43]} (17... h6 $14) 18. exd5 {[%emt 0:00:05]} Ncb8 {[%emt 0:01:19][%cal Ob8a6]} 19. f4 {[%emt 0:10:01][%cal Bf3f4,Bf4f5][%mdl 32] fxe5 would now be deadly.} Rf8 {[%emt 0:00:37] [#]} 20. Ne2 $1 {[%emt 0:02:28][%cal Bc1e2,Be2g3,Bg3e4][%mdl 32]} Bd8 {[%emt 0:04:57]} 21. Ng3 {[%emt 0:09:08] White is more active.} g6 {[%emt 0:08:46] Prevents Nf5.} (21... Bh4 $16 {was worth a try.} 22. Qf3 Bxg3) 22. Ne4 $18 {[%emt 0:03:49]} Qxd5 {[%emt 0:02:32]} 23. f5 {[%emt 0:00:25] Hoping for Kh1.} Qc6 {[%emt 0:03:39]} 24. c4 {[%emt 0:04:46]} Na6 {[%emt 0:08:46]} 25. Bb1 {[%emt 0:05:40]} Nac5 {[%emt 0:03:03] [#]} 26. Nxc5 {[%emt 0:02:47]} (26. Nxd6 $6 Be7 $16) 26... dxc5 {[%emt 0:01:00]} 27. Bh6 {[%emt 0:00:59]} Be7 {[%emt 0:02:53]} 28. Bxf8 {[%emt 0:03:11]} Rxf8 {[%emt 0:00:02]} 29. Qf3 {[%emt 0:01:45]} Qxf3 {[%emt 0:02:16]} 30. Rxf3 {[%emt 0:00:21]} (30. gxf3 Nb6 $16) 30... Nb8 {[%emt 0:00:50]} (30... Nb6 {keeps fighting.} 31. Be4 (31. f6 Bd8 $18) 31... Bg5) 31. Be4 {[%emt 0:00:28]} b6 {[%emt 0:02:04]} 32. f6 {[%emt 0:00:40]} Bd8 {[%emt 0:00:10]} 33. g4 {[%emt 0:01:49]} h6 {[%emt 0:02:53]} 34. h4 {[%emt 0:00:15]} Na6 {[%emt 0:00:24]} 35. Rd6 {[%emt 0:00:43] aiming for Rfd3.} Nc7 {[%emt 0:00:43]} 36. Rfd3 {[%emt 0:04:08]} Ne6 {[%emt 0:00:22] [#]} 37. Rxe6 {[%emt 0:01:00][%mdl 512]} fxe6 {[%emt 0:00:06][%mdl 4096] Endgame. KRB-KRB} 38. g5 {[%emt 0:00:02]} (38. Bxg6 Bxf6 39. Rd6 Bxh4 40. Rxe6 Rf4 $15) 38... hxg5 {[%emt 0:00:50]} 39. hxg5 {[%emt 0:00:06]} ({Inferior is} 39. Bxg6 gxh4 (39... Bxf6 40. h5 $17) 40. Rd6 Bxf6 41. Rxe6 Kg7 $19) 39... b5 $2 {[%emt 0:00:25]} (39... Bxf6 40. gxf6 g5) 40. cxb5 {[%emt 0:01:24][%cal Bc4b5,Bb5b6][%mdl 32]} c4 {[%emt 0:00:21]} 41. Rd6 {[%emt 0:00:18]} Bc7 {[%emt 0:01:20]} 42. Rxe6 {[%emt 0:01:19][%cal Ob5b6] White wants to mate with b6!} Rd8 {[%emt 0:15:35]} 43. Rc6 {[%emt 0:01:25]} (43. Bxg6 $142 Kh8 44. b6 Bd6 45. b7 Bb8 46. Re7 Bd6 47. Rh7+ Kg8 48. Bf5 (48. f7+ Kf8 49. Rh8+ Ke7 50. Rxd8 Kxd8 51. b8=Q+ Bxb8 52. f8=Q+ Kd7 53. Qxb8 Kc6)) 43... Ba5 {[%emt 0:00:00]} 44. b6 {[%emt 0:00:20] White mates.} Rd1+ {[%emt 0:00:00]} 45. Kg2 {[%emt 0:00:14]} Rd2+ {[%emt 0:00:00]} 46. Kf3 {[%emt 0:00:23]} Rxb2 {[%emt 0:00:00]} 47. Bxg6 {[%emt 0:00:28][%cal Rc6c8]} Rxb6 {[%emt 0:00:00]} 48. Rc8# {[%emt 0:00:05] Weighted Error Value: White=0.18 (very precise) /Black=0.58.  Mistake:       	White=1     	Black=5      Inaccurate:     	---       	Black=5      OK:         	White=16    	Black=9      Best:        	White=1     	Black=3      Strong:       	White=2     	---} 1-0

[Event "FISU WUMSCC Men 2024"]
[Site "Entebbe"]
[Date "2024.06.28"]
[Round "6.2"]
[White "Walter, Szymon"]
[Black "Gatineau, Yovann"]
[Result "1/2-1/2"]
[ECO "C11"]
[WhiteElo "2313"]
[BlackElo "2414"]
[Annotator "RC"]
[PlyCount "149"]
[EventDate "2024.06.24"]
[EventType "swiss"]
[EventCountry "UGA"]
[SourceTitle "playchess.com"]
[Source "ChessBase"]
[SourceQuality "1"]
[TimeControl "5400+30"]

1. e4 {[%emt 0:00:04]} e6 {[%emt 0:04:24]} 2. d4 {[%emt 0:00:36]} d5 {[%emt 0:00:02]} 3. Nc3 {[%emt 0:01:12]} Nf6 {[%emt 0:00:05]} 4. e5 {[%emt 0:00:39]} Nfd7 {[%emt 0:00:06]} 5. f4 {[%emt 0:00:08]} c5 {[%emt 0:00:05]} 6. Nf3 {[%emt 0:00:18]} Nc6 {[%emt 0:00:04]} 7. Be3 {[%emt 0:00:14]} Be7 {[%emt 0:00:03]} 8. Qd2 {[%emt 0:00:50]} O-O {[%emt 0:00:07]} 9. dxc5 {[%emt 0:08:07]} Qa5 {[%emt 0:00:08]} 10. a3 {[%emt 0:04:24]} a6 {[%emt 0:00:15]} 11. h4 {[%emt 0:03:12]} f6 {[%emt 0:00:09]} 12. exf6 {[%emt 0:05:10]} Nxf6 {[%emt 0:00:14]} 13. Nd4 {[%emt 0:05:05]} Bxc5 {[%emt 0:04:04]} 14. Be2 {[%emt 0:15:39]} Bd7 {[%emt 0:05:21]} 15. O-O-O {[%emt 0:04:40]} Nxd4 {[%emt 0:08:11]} 16. Bxd4 {[%emt 0:00:20]} Rac8 {[%emt 0:00:56]} 17. g4 {[%emt 0:18:32]} b5 {[%emt 0:13:12]} 18. Bxc5 {[%emt 0:17:35]} Rxc5 {[%emt 0:00:07]} 19. Qd4 {[%emt 0:00:08]} Rfc8 {[%emt 0:01:53]} 20. Bd3 {[%emt 0:00:11]} Qd8 {[%emt 0:26:57]} 21. g5 {[%emt 0:01:59]} Nh5 {[%emt 0:01:13]} 22. Rhe1 {[%emt 0:00:49]} g6 {[%emt 0:02:38]} 23. Kb1 {[%emt 0:04:31]} Qf8 {[%emt 0:01:06]} 24. Ne2 {[%emt 0:00:09]} a5 {[%emt 0:01:24]} 25. Qe5 {[%emt 0:00:52]} b4 {[%emt 0:05:40]} 26. axb4 {[%emt 0:00:18]} axb4 {[%emt 0:00:04]} 27. Nd4 {[%emt 0:00:03]} Re8 {[%emt 0:04:38]} 28. Rf1 {[%emt 0:00:53]} Ra5 {[%emt 0:00:35]} 29. Rde1 {[%emt 0:00:44]} Rea8 {[%emt 0:03:22]} 30. Kc1 {[%emt 0:00:10]} Qf7 {[%emt 0:07:38]} 31. Kd2 {[%emt 0:01:15]} Re8 {[%emt 0:02:30]} 32. Re3 {[%emt 0:03:19]} Ra2 {[%emt 0:02:44]} 33. Nb3 {[%emt 0:02:40]} Rf8 {[%emt 0:00:41]} 34. Nc5 {[%emt 0:00:20]} Bc8 {[%emt 0:00:52]} 35. Qd4 {[%emt 0:00:45]} Qg7 {[%emt 0:04:10]} 36. Re5 {[%emt 0:00:06]} Ra7 {[%emt 0:00:46]} 37. Qxb4 {[%emt 0:03:03]} Raf7 {[%emt 0:00:03]} 38. Nxe6 {[%emt 0:00:00]} Bxe6 {[%emt 0:00:01]} 39. Rxe6 {[%emt 0:00:00]} Nxf4 {[%emt 0:00:21]} 40. Rf6 {[%emt 0:00:58]} Rxf6 {[%emt 0:00:24]} 41. gxf6 {[%emt 0:00:04]} Qxf6 {[%emt 0:00:05]} 42. h5 {[%emt 0:00:47]} Qg5 {[%emt 0:01:07]} 43. Kc3 {[%emt 0:01:11]} Qe5+ {[%emt 0:00:26]} 44. Kd2 {[%emt 0:00:00]} Qxh5 {[%emt 0:01:54]} 45. Qe7 {[%emt 0:00:23]} Qh6 {[%emt 0:00:34]} 46. Kd1 {[%emt 0:00:03]} Nxd3 {[%emt 0:01:34]} 47. Qe6+ {[%emt 0:00:08]} Kh8 {[%emt 0:00:06]} 48. Rxf8+ {[%emt 0:00:05]} Qxf8 {[%emt 0:00:01]} 49. cxd3 {[%emt 0:00:05]} Qf3+ {[%emt 0:01:06]} 50. Kd2 {[%emt 0:00:16]} Qf4+ {[%emt 0:00:36]} 51. Kd1 {[%emt 0:00:20]} Qd4 {[%emt 0:00:35]} 52. Kc2 {[%emt 0:00:30]} Kg7 {[%emt 0:00:40]} 53. Qe7+ {[%emt 0:00:11]} Kh6 {[%emt 0:01:03]} 54. b4 {[%emt 0:00:07]} g5 {[%emt 0:00:00]} 55. Qc5 {[%emt 0:01:49]} Qe5 {[%emt 0:00:00]} 56. Qf8+ {[%emt 0:00:24]} Kh5 {[%emt 0:00:36]} 57. Qf7+ {[%emt 0:00:17]} Kg4 {[%emt 0:00:35]} 58. b5 {[%emt 0:00:36]} d4 {[%emt 0:00:35]} 59. Qd7+ {[%emt 0:00:28]} Kf3 {[%emt 0:00:33]} 60. Qc6+ {[%emt 0:00:30]} Kf2 {[%emt 0:00:16]} 61. b6 {[%emt 0:00:38]} g4 {[%emt 0:00:39]} 62. b7 {[%emt 0:01:47]} g3 {[%emt 0:00:05]} 63. Qb6 {[%emt 0:00:52]} g2 {[%emt 0:00:55]} 64. b8=Q {[%emt 0:00:07]} Qe2+ {[%emt 0:00:42]} 65. Kb3 {[%emt 0:00:05]} Qxd3+ {[%emt 0:00:04]} 66. Ka4 {[%emt 0:00:21]} Qc4+ {[%emt 0:00:44]} 67. Ka3 {[%emt 0:00:21]} Qc3+ {[%emt 0:00:14]} 68. Ka4 {[%emt 0:00:09]} Qc4+ {[%emt 0:00:04]} 69. Ka3 {[%emt 0:00:07]} Qc3+ {[%emt 0:00:10]} 70. Ka4 {[%emt 0:00:05]} Qa1+ {[%emt 0:01:13]} 71. Kb5 {[%emt 0:00:36]} Qb2+ {[%emt 0:00:58]} 72. Kc6 {[%emt 0:00:22]} Qxb6+ {[%emt 0:00:19]} 73. Qxb6 {[%emt 0:00:16]} g1=Q {[%emt 0:00:06]} 74. Qxd4+ {[%emt 0:00:05]} Kf1 {[%emt 0:00:14]} 75. Qd3+ {[%emt 0:00:29]} 1/2-1/2

[Event "FISU WUMSCC Men 2024"]
[Site "Entebbe"]
[Date "2024.06.28"]
[Round "6.3"]
[White "Szustakowski, Antoni"]
[Black "Mladek, Richard"]
[Result "0-1"]
[ECO "A41"]
[WhiteElo "2362"]
[BlackElo "2385"]
[Annotator "RC"]
[PlyCount "88"]
[EventDate "2024.06.24"]
[EventType "swiss"]
[EventCountry "UGA"]
[SourceTitle "playchess.com"]
[Source "ChessBase"]
[SourceQuality "1"]
[TimeControl "5400+30"]

1. d4 {[%emt 0:00:05]} d6 {[%emt 0:00:25]} 2. c4 {[%emt 0:01:38]} e5 {[%emt 0:00:07]} 3. d5 {[%emt 0:00:04]} g6 {[%emt 0:01:24]} 4. h4 {[%emt 0:03:11]} h5 {[%emt 0:02:12]} 5. Nc3 {[%emt 0:05:29]} a5 {[%emt 0:00:45]} 6. e4 {[%emt 0:04:03]} Nd7 {[%emt 0:02:23]} 7. Bd3 {[%emt 0:02:14]} Nc5 {[%emt 0:00:49]} 8. Bc2 {[%emt 0:03:53]} Bh6 {[%emt 0:03:59]} 9. Bxh6 {[%emt 0:03:06]} Nxh6 {[%emt 0:00:46]} 10. Nge2 {[%emt 0:00:32]} g5 {[%emt 0:13:10]} 11. Qd2 {[%emt 0:12:43]} gxh4 {[%emt 0:01:46]} 12. O-O-O {[%emt 0:00:12]} Bd7 {[%emt 0:03:54]} 13. f3 {[%emt 0:05:52]} Qf6 {[%emt 0:02:04]} 14. Nb5 {[%emt 0:03:39]} Kd8 {[%emt 0:04:22]} 15. Rdf1 {[%emt 0:06:11]} Rg8 {[%emt 0:09:29]} 16. Nec3 {[%emt 0:03:22]} Rg3 {[%emt 0:05:23]} 17. Rh2 {[%emt 0:16:37]} Ke7 {[%emt 0:10:32]} 18. Ne2 {[%emt 0:05:02]} Rg7 {[%emt 0:02:22]} 19. f4 {[%emt 0:00:56]} Rag8 {[%emt 0:04:16]} 20. Nec3 {[%emt 0:09:02]} h3 {[%emt 0:04:01]} 21. gxh3 {[%emt 0:00:52]} c6 {[%emt 0:00:11]} 22. dxc6 {[%emt 0:01:05]} bxc6 {[%emt 0:00:08]} 23. Rd1 {[%emt 0:05:07]} Qxf4 {[%emt 0:02:20]} 24. Qxf4 {[%emt 0:01:44]} exf4 {[%emt 0:00:45]} 25. Nxd6 {[%emt 0:00:02]} Rg1 {[%emt 0:01:44]} 26. Nf5+ {[%emt 0:04:22]} Nxf5 {[%emt 0:04:53]} 27. exf5 {[%emt 0:00:01]} Rxd1+ {[%emt 0:00:16]} 28. Kxd1 {[%emt 0:00:01]} Kf6 {[%emt 0:01:48]} 29. Rf2 {[%emt 0:00:42]} Rg1+ {[%emt 0:00:29]} 30. Kd2 {[%emt 0:00:04]} Rh1 {[%emt 0:04:31]} 31. Rf3 {[%emt 0:01:00]} Rh2+ {[%emt 0:00:27]} 32. Ne2 {[%emt 0:00:22]} Ke5 {[%emt 0:01:17]} 33. b3 {[%emt 0:00:47]} Nb7 {[%emt 0:02:27]} 34. Bd3 {[%emt 0:00:37]} Nd6 {[%emt 0:00:25]} 35. c5 {[%emt 0:01:37]} Nxf5 {[%emt 0:02:24]} 36. Kc3 {[%emt 0:00:06]} Ne3 {[%emt 0:04:09]} 37. a3 {[%emt 0:01:49]} Nd5+ {[%emt 0:00:35]} 38. Kd2 {[%emt 0:00:09]} Bxh3 {[%emt 0:00:11]} 39. Ke1 {[%emt 0:00:42]} Bg2 {[%emt 0:00:43]} 40. Rf2 {[%emt 0:00:31]} f3 {[%emt 0:00:01]} 41. Ng3 {[%emt 0:00:23]} h4 {[%emt 0:01:55]} 42. Nf1 {[%emt 0:00:22]} Rh1 {[%emt 0:00:24]} 43. Kd2 {[%emt 0:00:05]} Nf4 {[%emt 0:01:00]} 44. Ne3 {[%emt 0:00:21]} Nh3 {[%emt 0:00:17]} 0-1

[Event "FISU WUMSCC Men 2024"]
[Site "Entebbe"]
[Date "2024.06.28"]
[Round "6.4"]
[White "Defromont, Benjamin"]
[Black "Thilakarathne, G M H"]
[Result "1-0"]
[ECO "B52"]
[WhiteElo "2380"]
[BlackElo "2356"]
[Annotator "RC"]
[PlyCount "75"]
[EventDate "2024.06.24"]
[EventType "swiss"]
[EventCountry "UGA"]
[SourceTitle "playchess.com"]
[Source "ChessBase"]
[SourceQuality "1"]
[TimeControl "5400+30"]

1. e4 {[%emt 0:04:56]} c5 {[%emt 0:00:04]} 2. Nf3 {[%emt 0:00:05]} d6 {[%emt 0:00:05]} 3. Bb5+ {[%emt 0:00:07]} Bd7 {[%emt 0:00:08]} 4. Bxd7+ {[%emt 0:00:05]} Nxd7 {[%emt 0:00:06]} 5. O-O {[%emt 0:00:18]} Ngf6 {[%emt 0:00:05]} 6. Qe2 {[%emt 0:02:16]} g6 {[%emt 0:01:24]} 7. c3 {[%emt 0:02:02]} Bg7 {[%emt 0:00:10]} 8. d4 {[%emt 0:00:08]} cxd4 {[%emt 0:06:32]} 9. cxd4 {[%emt 0:03:24]} O-O {[%emt 0:01:53]} 10. Nc3 {[%emt 0:00:16]} Nb6 {[%emt 0:01:34]} 11. b3 {[%emt 0:05:14]} Rc8 {[%emt 0:13:33]} 12. Bb2 {[%emt 0:02:58]} Nh5 {[%emt 0:05:38]} 13. Qe3 {[%emt 0:06:52]} Qd7 {[%emt 0:08:12]} 14. Rfe1 {[%emt 0:04:18]} d5 {[%emt 0:08:31]} 15. e5 {[%emt 0:06:19]} Rc6 {[%emt 0:04:30]} 16. a4 {[%emt 0:02:25]} Na8 {[%emt 0:03:22]} 17. h3 {[%emt 0:01:28]} Bh8 {[%emt 0:01:59]} 18. Ba3 {[%emt 0:04:09]} Ng7 {[%emt 0:04:39]} 19. Rac1 {[%emt 0:00:06]} Rfc8 {[%emt 0:06:20]} 20. Ne2 {[%emt 0:01:27]} Ne6 {[%emt 0:03:27]} 21. Rxc6 {[%emt 0:01:08]} Rxc6 {[%emt 0:00:23]} 22. Rc1 {[%emt 0:00:10]} Rxc1+ {[%emt 0:01:40]} 23. Qxc1 {[%emt 0:01:20]} Bg7 {[%emt 0:01:00]} 24. Ne1 {[%emt 0:01:32]} f5 {[%emt 0:05:56]} 25. Nd3 {[%emt 0:00:50]} Kf7 {[%emt 0:02:09]} 26. Qc3 {[%emt 0:03:57]} Qc7 {[%emt 0:08:46]} 27. Qb4 {[%emt 0:02:41]} Bf8 {[%emt 0:00:55]} 28. Nef4 {[%emt 0:01:26]} Nxf4 {[%emt 0:00:23]} 29. Nxf4 {[%emt 0:00:04]} Qc6 {[%emt 0:01:26]} 30. Qa5 {[%emt 0:05:10]} e6 {[%emt 0:00:30]} 31. Bc5 {[%emt 0:00:04]} b6 {[%emt 0:07:31]} 32. Qxa7+ {[%emt 0:00:13]} Kg8 {[%emt 0:00:01]} 33. Nxe6 {[%emt 0:03:33]} bxc5 {[%emt 0:00:21]} 34. Nd8 {[%emt 0:00:15]} Qc7 {[%emt 0:01:22]} 35. Qxa8 {[%emt 0:00:11]} cxd4 {[%emt 0:00:14]} 36. Qxd5+ {[%emt 0:00:05]} Kh8 {[%emt 0:00:06]} 37. Ne6 {[%emt 0:02:17]} Qc1+ {[%emt 0:00:19]} 38. Kh2 {[%emt 0:00:03]} 1-0

[Event "FISU WUMSCC Men 2024"]
[Site "Entebbe"]
[Date "2024.06.28"]
[Round "6.5"]
[White "Horak, Martin"]
[Black "Nyola Wasswa Mark"]
[Result "1/2-1/2"]
[ECO "C27"]
[WhiteElo "2333"]
[BlackElo "2067"]
[Annotator "RC"]
[PlyCount "69"]
[EventDate "2024.06.24"]
[EventType "swiss"]
[EventCountry "UGA"]
[SourceTitle "playchess.com"]
[Source "ChessBase"]
[SourceQuality "1"]
[TimeControl "5400+30"]

1. e4 {[%emt 0:00:11]} e5 {[%emt 0:00:14]} 2. Nc3 {[%emt 0:00:42]} Nf6 {[%emt 0:00:12]} 3. Bc4 {[%emt 0:00:30]} Bc5 {[%emt 0:03:43]} 4. d3 {[%emt 0:00:21]} c6 {[%emt 0:00:54]} 5. Nf3 {[%emt 0:01:30]} O-O {[%emt 0:01:54]} 6. Bb3 {[%emt 0:02:30]} d6 {[%emt 0:00:35]} 7. Ne2 {[%emt 0:01:44]} Be6 {[%emt 0:08:06]} 8. O-O {[%emt 0:02:59]} Re8 {[%emt 0:03:04]} 9. Ng3 {[%emt 0:01:10]} Nbd7 {[%emt 0:00:22]} 10. c3 {[%emt 0:00:53]} d5 {[%emt 0:00:56]} 11. d4 {[%emt 0:13:58]} dxe4 {[%emt 1:16:00]} 12. Bxe6 {[%emt 0:02:07]} fxe6 {[%emt 0:00:00]} 13. Nxe5 {[%emt 0:13:45]} Bd6 {[%emt 0:00:00]} 14. Bf4 {[%emt 0:05:46]} Bxe5 {[%emt 0:00:00]} 15. Bxe5 {[%emt 0:09:58]} Qa5 {[%emt 0:00:00]} 16. Bxf6 {[%emt 0:07:00]} Nxf6 {[%emt 0:00:00]} 17. Re1 {[%emt 0:00:13]} Qd5 {[%emt 0:00:00]} 18. Qc2 {[%emt 0:03:46]} e5 {[%emt 0:00:00]} 19. Nxe4 {[%emt 0:00:47]} Nxe4 {[%emt 0:00:00]} 20. Qxe4 {[%emt 0:01:59]} Qxe4 {[%emt 0:00:00]} 21. Rxe4 {[%emt 0:00:05]} exd4 {[%emt 0:00:00]} 22. Rxd4 {[%emt 0:00:34]} Re2 {[%emt 0:00:00]} 23. Rb4 {[%emt 0:00:27]} Rae8 {[%emt 0:00:00]} 24. Kf1 {[%emt 0:01:45]} b6 {[%emt 0:00:00]} 25. Rd1 {[%emt 0:04:19]} c5 {[%emt 0:00:00]} 26. Ra4 {[%emt 0:05:04]} a5 {[%emt 0:00:00]} 27. b4 {[%emt 0:01:35]} axb4 {[%emt 0:00:00]} 28. cxb4 {[%emt 0:00:14]} c4 {[%emt 0:01:21]} 29. b5 {[%emt 0:01:02]} Rc2 {[%emt 0:01:10]} 30. Ra7 {[%emt 0:01:45]} c3 {[%emt 0:00:59]} 31. Re1 {[%emt 0:01:27]} Rf8 {[%emt 0:01:35]} 32. f3 {[%emt 0:00:11]} Rd8 {[%emt 0:01:24]} 33. Rc7 {[%emt 0:07:33]} Rxa2 {[%emt 0:01:53]} 34. Rxc3 {[%emt 0:01:53]} Rdd2 {[%emt 0:00:15]} 35. g4 {[%emt 0:01:06]} 1/2-1/2

[Event "FISU WUMSCC Men 2024"]
[Site "Entebbe"]
[Date "2024.06.28"]
[Round "6.6"]
[White "Jakab, Bela"]
[Black "Kato, Richard"]
[Result "1/2-1/2"]
[ECO "C14"]
[WhiteElo "2390"]
[BlackElo "1908"]
[Annotator "RC"]
[PlyCount "109"]
[EventDate "2024.06.24"]
[EventType "swiss"]
[EventCountry "UGA"]
[SourceTitle "playchess.com"]
[Source "ChessBase"]
[SourceQuality "1"]
[TimeControl "5400+30"]

1. e4 {[%emt 0:00:04]} e6 {[%emt 0:00:20]} 2. d4 {[%emt 0:00:56]} d5 {[%emt 0:03:39]} 3. Nc3 {[%emt 0:00:06]} Nf6 {[%emt 0:01:12]} 4. e5 {[%emt 0:00:36]} Nfd7 {[%emt 0:00:53]} 5. f4 {[%emt 0:00:08]} c5 {[%emt 0:01:29]} 6. Nf3 {[%emt 0:00:09]} a6 {[%emt 0:01:33]} 7. Be3 {[%emt 0:00:55]} Nc6 {[%emt 0:00:41]} 8. Qd2 {[%emt 0:01:15]} b5 {[%emt 0:00:30]} 9. a3 {[%emt 0:02:29]} Qb6 {[%emt 0:00:11]} 10. dxc5 {[%emt 0:07:26]} Bxc5 {[%emt 0:00:26]} 11. Bxc5 {[%emt 0:00:04]} Qxc5 {[%emt 0:00:59]} 12. Bd3 {[%emt 0:01:54]} h6 {[%emt 0:01:34]} 13. Ne2 {[%emt 0:07:06]} Nb6 {[%emt 0:03:58]} 14. b4 {[%emt 0:02:25]} Qe7 {[%emt 0:00:09]} 15. O-O {[%emt 0:00:24]} g6 {[%emt 0:02:03]} 16. Qe3 {[%emt 0:02:38]} Qa7 {[%emt 0:03:52]} 17. Nfd4 {[%emt 0:03:38]} Nxd4 {[%emt 0:01:17]} 18. Nxd4 {[%emt 0:00:45]} Bd7 {[%emt 0:00:05]} 19. Rf3 {[%emt 0:03:13]} Na4 {[%emt 0:05:39]} 20. Kf1 {[%emt 0:11:24]} Rc8 {[%emt 0:02:33]} 21. Nxb5 {[%emt 0:03:33]} Qxe3 {[%emt 0:02:45]} 22. Nd6+ {[%emt 0:00:27]} Kf8 {[%emt 0:00:35]} 23. Rxe3 {[%emt 0:00:06]} Ra8 {[%emt 0:03:05]} 24. c4 {[%emt 0:04:26]} dxc4 {[%emt 0:00:41]} 25. Bxc4 {[%emt 0:00:06]} Nb6 {[%emt 0:01:11]} 26. Bb3 {[%emt 0:01:56]} Ke7 {[%emt 1:02:10]} 27. Rd1 {[%emt 0:09:20]} h5 {[%emt 0:00:00]} 28. h4 {[%emt 0:01:58]} Rhb8 {[%emt 0:00:00]} 29. Rc3 {[%emt 0:08:21]} Ra7 {[%emt 0:00:00]} 30. Rc5 {[%emt 0:01:02]} Nc8 {[%emt 0:00:00]} 31. Ke2 {[%emt 0:08:03]} Nxd6 {[%emt 0:00:00]} 32. exd6+ {[%emt 0:00:18]} Kd8 {[%emt 0:00:00]} 33. Bc2 {[%emt 0:05:01]} a5 {[%emt 0:00:00]} 34. bxa5 {[%emt 0:02:42]} Rb5 {[%emt 0:00:00]} 35. Rxb5 {[%emt 0:01:14]} Bxb5+ {[%emt 0:00:00]} 36. Bd3 {[%emt 0:00:19]} Bxd3+ {[%emt 0:00:00]} 37. Rxd3 {[%emt 0:00:09]} Kd7 {[%emt 0:00:00]} 38. Kd2 {[%emt 0:03:12]} Rxa5 {[%emt 0:00:00]} 39. Kc2 {[%emt 0:00:08]} e5 {[%emt 0:00:00]} 40. fxe5 {[%emt 0:01:18]} Rxe5 {[%emt 0:00:00]} 41. Kb3 {[%emt 0:01:01]} Re4 {[%emt 0:00:00]} 42. g3 {[%emt 0:00:30]} f5 {[%emt 0:00:00]} 43. a4 {[%emt 0:00:03]} f4 {[%emt 0:00:00]} 44. a5 {[%emt 0:00:30]} fxg3 {[%emt 0:00:00]} 45. Rxg3 {[%emt 0:00:06]} Kxd6 {[%emt 0:00:00]} 46. a6 {[%emt 0:01:43]} Kc7 {[%emt 0:00:00]} 47. Rxg6 {[%emt 0:00:15]} Rxh4 {[%emt 0:00:00]} 48. a7 {[%emt 0:01:15]} Kb7 {[%emt 0:00:00]} 49. Ra6 {[%emt 0:00:59]} Ka8 {[%emt 0:00:00]} 50. Ra5 {[%emt 0:00:04]} Rg4 {[%emt 0:00:00]} 51. Kc3 {[%emt 0:00:25]} Rg7 {[%emt 0:00:00]} 52. Rxh5 {[%emt 0:00:11]} Kxa7 {[%emt 0:00:00]} 53. Kd4 {[%emt 0:00:12]} Rc7 {[%emt 0:00:00]} 54. Rc5 {[%emt 0:00:03]} Rxc5 {[%emt 0:00:00]} 55. Kxc5 {[%emt 0:00:06]} 1/2-1/2